fUSD/lending_fUSD_20260329
["ID","MTS","AMOUNT","RATE_DAILY","PERIOD"]
[419016622,1774755051847,-177.0,0.000229,2]
[419016623,1774755051857,-291.0,0.000229,2]
[419016624,1774755051866,-2000.0,0.000229,2]
[419016625,1774755051877,-424.0,0.000229,2]
[419016626,1774755051886,-4233.0,0.000229,2]
[419016627,1774755051896,-876.0,0.000229,2]
[419016628,1774755051906,-235.0,0.000229,2]
[419016629,1774755051915,-500.0,0.00022956,2]
[419016630,1774755051924,-500.0,0.00023,2]
[419016631,1774755051934,-2807.0,0.0002336,3]
[419016632,1774755051943,-665.85,0.00023458,2]
[419016633,1774755051952,-665.85,0.00023458,2]
[419016634,1774755051961,-665.85,0.00023458,2]
[419016635,1774755051970,-665.85,0.00023458,2]
[419016636,1774755051980,-666.04503174,0.00023458,2]
[419016637,1774755051989,-1092.66,0.00023504,2]
[419016638,1774755051998,-250.0,0.00023756,5]
[419016639,1774755052008,-155.1993,0.000238,2]
[419016640,1774755052017,-177.0,0.000239,2]
[419016641,1774755052026,-291.0,0.000239,2]
[419016642,1774755052035,-424.0,0.000239,2]
[419016643,1774755052044,-4233.0,0.000239,2]
[419016644,1774755052054,-876.0,0.000239,2]
[419016645,1774755052063,-235.0,0.000239,2]
[419016646,1774755052072,-445.31,0.000242,7]
[419016647,1774755052081,-1077.56,0.000243,7]
[419016648,1774755052090,-513.0,0.00024313,11]
[419016649,1774755052100,-3655.0,0.00024384,120]
[419016650,1774755052110,-500.0,0.00024398,2]
[419016651,1774755052119,-500.0,0.00024631,2]
[419016652,1774755052129,-200.0,0.00024658,2]
[419016653,1774755052138,-278.0,0.00024658,2]
[419016654,1774755052148,-250.0,0.00024658,2]
[419016655,1774755052158,-250.0,0.00024658,2]
[419016656,1774755052167,-166.0,0.00024658,2]
[419016657,1774755052176,-1000.0,0.00024658,2]
[419016658,1774755052186,-151.0,0.00024658,2]
[419016659,1774755052195,-151.0,0.00024658,2]
[419016660,1774755052205,-151.0,0.00024658,2]
[419016661,1774755052214,-151.0,0.00024658,2]
[419016662,1774755052224,-151.0,0.00024658,2]
[419016663,1774755052234,-281.125879,0.00024658,2]
[419016664,1774755052244,-150.0,0.00024658,2]
[419016665,1774755052253,-150.0,0.00024808,2]
[419016666,1774755052262,-150.0,0.00024808,2]
[419016667,1774755052272,-150.0,0.00024808,2]
[419016668,1774755052281,-925.0,0.00024808,2]
[419016669,1774755052291,-1216.0,0.00024808,2]
[419016670,1774755052301,-1346.0,0.00024808,2]
[419016671,1774755052310,-6013.0,0.00024808,2]
[419016672,1774755052320,-2468.0,0.00024808,2]
[419016673,1774755052330,-189.50881182,0.00024834,2]
[419016674,1774755052339,-700.0,0.0002487,2]
[419016675,1774755052349,-600.4387024,0.0002487,2]
[419016676,1774755052359,-150.0,0.00024899,2]
[419016677,1774755052368,-288.44921656,0.00024899,2]
[419016678,1774755052377,-177.0,0.000249,2]
[419016679,1774755052386,-7380.22,0.000249,2]
[419016680,1774755052396,-291.0,0.000249,2]
[419016681,1774755052405,-424.0,0.000249,2]
[419016682,1774755052414,-4233.0,0.000249,2]
[419016683,1774755052424,-876.0,0.000249,2]
[419016684,1774755052433,-29864.5061748,0.000249,3]
[419016685,1774755052442,-235.0,0.000249,2]
[419016686,1774755052452,-224.87,0.00024918,2]
[419016687,1774755052461,-150.0,0.00025,2]
[419016688,1774755052471,-150.0,0.00025,2]
[419016689,1774755052480,-160.0,0.00025,7]
[419016690,1774755052489,-550.0,0.00025,2]
[419016691,1774755052499,-648.6,0.000251,7]
[419016692,1774755052508,-300.0,0.000255,2]
[419016693,1774755052517,-150.0,0.000255,2]
[419016694,1774755052526,-155.8617,0.000255,2]
[419016695,1774755052535,-1092.66,0.00025667,2]
[419016696,1774755052544,-500.0,0.0002584,2]
[419016697,1774755052554,-152.0,0.00025872,3]
[419016698,1774755052564,-150.0,0.0002589,2]
[419016699,1774755052573,-195.57240534,0.000259,2]
[419016700,1774755052583,-293.66970075,0.000259,2]
[419016701,1774755052592,-434.87680918,0.000259,2]
[419016702,1774755052602,-4238.22967755,0.000259,2]
[419016703,1774755052611,-895.69312204,0.000259,2]
[419016704,1774755052620,-151.70401083,0.000259,30]
[419016705,1774755052630,-236.58648899,0.000259,2]
[419016706,1774755052640,-214.2,0.00026,2]
[419016707,1774755052652,-500.0,0.00026239,120]
[419016708,1774755052662,-513.0,0.00026375,12]
[419016709,1774755052673,-2000.0,0.000266,2]
[419016710,1774755052685,-567.43,0.000268,7]
[419016711,1774755052695,-154.13,0.00026947,2]
[419016712,1774755052705,-600.0,0.00027,2]
[419016713,1774755052716,-156.527,0.000271,2]
[419016714,1774755052726,-150.0,0.00027185,2]
[419016715,1774755052735,-500.0,0.00027282,2]
[419016716,1774755052745,-616.12,0.00027396,2]
[419016717,1774755052754,-264.49213527,0.00027396,2]
[419016718,1774755052765,-1456.88,0.00027397,2]
[419016719,1774755052774,-1000.0,0.00027397,20]
[419016720,1774755052783,-300.0,0.00027397,2]
[419016721,1774755052793,-20753.72,0.00027397,10]
[419016722,1774755052802,-151.0,0.00027397,2]
[419016723,1774755052813,-151.0,0.00027397,2]
[419016724,1774755052823,-151.0,0.00027397,2]
[419016725,1774755052833,-151.0,0.00027397,2]
[419016726,1774755052842,-151.0,0.00027397,2]
[419016727,1774755052853,-151.0,0.00027397,2]
[419016728,1774755052862,-151.0,0.00027397,2]
[419016729,1774755052871,-151.0,0.00027397,2]
[419016730,1774755052880,-151.0,0.00027397,2]
[419016731,1774755052890,-151.0,0.00027397,2]
[419016732,1774755052899,-151.0,0.00027397,2]
[419016733,1774755052908,-151.0,0.00027397,2]
[419016734,1774755052918,-500.0,0.00027397,5]
[419016735,1774755052929,-445.31,0.000278,7]
[419016736,1774755052938,-150.0,0.00027808,2]
[419016737,1774755052948,-150.0,0.00027808,2]
[419016738,1774755052957,-925.0,0.00027808,2]
[419016739,1774755052967,-1216.0,0.00027808,2]
[419016740,1774755052978,-1346.0,0.00027808,2]
[419016741,1774755052988,-6013.0,0.00027808,2]
[419016742,1774755052997,-2468.0,0.00027808,2]
[419016743,1774755053007,-1092.66,0.0002783,2]
[419016744,1774755053016,-224.87,0.00027918,2]
[419016745,1774755053025,-1077.56,0.00028,7]
[419016746,1774755053034,-2587.82372052,0.00028,2]
[419016747,1774755053044,-744.75,0.00028,7]
[419016748,1774755053053,-7380.22,0.000283,2]
[419016749,1774755053062,-513.0,0.00028437,14]
[419016750,1774755053072,-677.97110622,0.00028458,63]
[419016751,1774755053081,-150.0,0.00028544,2]
[419016752,1774755053090,-157.1951,0.000287,2]
[419016753,1774755053099,-648.6,0.000287,7]
[419016754,1774755053109,-500.0,0.00028724,2]
[419016755,1774755053119,-498.40815233,0.00028767,2]
[419016756,1774755053128,-246.0,0.00028767,30]
[419016757,1774755053138,-214.0,0.00028767,30]
[419016758,1774755053147,-200.0,0.00028767,2]
[419016759,1774755053157,-278.0,0.00028767,2]
[419016760,1774755053166,-250.0,0.00028767,2]
[419016761,1774755053175,-250.0,0.00028767,2]
[419016762,1774755053185,-166.0,0.00028767,2]
[419016763,1774755053194,-1000.0,0.00028767,5]
[419016764,1774755053204,-152.0,0.00028866,4]
[419016765,1774755053213,-500.0,0.00029086,2]
[419016766,1774755053223,-500.0,0.00029162,120]
[419016767,1774755053232,-250.0,0.00029519,13]
[419016768,1774755053242,-154.0,0.00029853,30]
[419016769,1774755053252,-150.0,0.00029971,2]
[419016770,1774755053261,-1092.66,0.00029993,2]
[419016771,1774755053272,-150.0,0.0003,2]
[419016772,1774755053281,-181.34011213,0.0003,120]
[419016773,1774755053291,-150.0,0.00030136,20]
[419016774,1774755053301,-1500.0,0.00030137,5]
[419016775,1774755053311,-500.0,0.00030166,2]
[419016776,1774755053398,-150.19,0.0003026,2]
[419016777,1774755053408,-2000.0,0.000303,2]
[419016778,1774755053418,-157.8661,0.000304,2]
[419016779,1774755053428,-513.0,0.000305,16]
[419016780,1774755053437,-1570.0,0.00030627,3]
[419016781,1774755053446,-925.0,0.00030808,2]
[419016782,1774755053455,-1216.0,0.00030808,2]
[419016783,1774755053465,-1346.0,0.00030808,2]
[419016784,1774755053474,-6013.0,0.00030808,2]
[419016785,1774755053484,-2468.0,0.00030808,2]
[419016786,1774755053493,-567.43,0.00031,7]
[419016787,1774755053502,-744.75,0.00031,7]
[419016788,1774755053511,-445.31,0.000311,7]
[419016789,1774755053521,-1096.24809732,0.00031102,4]
[419016790,1774755053530,-7380.22,0.000312,2]
[419016791,1774755053540,-2807.0,0.00031267,3]
[419016792,1774755053549,-150.0,0.0003147,2]
[419016793,1774755053558,-1077.56,0.000315,7]
[419016794,1774755053567,-1616.11836392,0.00031507,5]
[419016795,1774755053576,-648.6,0.000316,7]
[419016796,1774755053586,-1568.0,0.00031605,3]
[419016797,1774755053595,-500.0,0.00031608,2]
[419016798,1774755053605,-154.0,0.00031843,120]
[419016799,1774755053615,-152.0,0.0003186,5]
[419016800,1774755053624,-1570.0,0.00031907,3]
[419016801,1774755053633,-158.54,0.00032,2]
[419016802,1774755053643,-500.0,0.00032084,120]
[419016803,1774755053652,-1092.66,0.00032156,2]
[419016804,1774755053661,-309.44,0.00032204,2]
[419016805,1774755053671,-513.0,0.00032562,18]
[419016806,1774755053680,-494.24656037,0.0003287,120]
[419016807,1774755053689,-390.15005411,0.0003287,120]
[419016808,1774755053699,-150.0,0.00032877,2]
[419016809,1774755053708,-246.0,0.00032877,30]
[419016810,1774755053716,-214.0,0.00032877,30]
[419016811,1774755053726,-200.0,0.00032877,2]
[419016812,1774755053735,-278.0,0.00032877,2]
[419016813,1774755053744,-155.0,0.00032877,2]
[419016814,1774755053754,-250.0,0.00032877,2]
[419016815,1774755053763,-250.0,0.00032877,2]
[419016816,1774755053772,-166.0,0.00032877,2]
[419016817,1774755053782,-265.0,0.00032877,15]
[419016818,1774755053790,-89499.46,0.000329,7]
[419016819,1774755053799,-150.0,0.00033043,2]
[419016820,1774755053809,-500.0,0.0003305,2]
[419016821,1774755053819,-150.0,0.00033066,30]
[419016822,1774755053828,-500.0,0.00033541,2]
[419016823,1774755053837,-159.2167,0.000337,2]
[419016824,1774755053846,-188.70542327,0.00033763,2]
[419016825,1774755053855,-250.0,0.00033802,32]
[419016826,1774755053865,-925.0,0.00033808,2]
[419016827,1774755053874,-1216.0,0.00033808,2]
[419016828,1774755053884,-1346.0,0.00033808,2]
[419016829,1774755053894,-6013.0,0.00033808,2]
[419016830,1774755053903,-2468.0,0.00033808,2]
[419016831,1774755053913,-151.48794476,0.00033875,80]
[419016832,1774755053922,-200.0,0.000339,12]
[419016833,1774755053932,-154.0,0.00033962,30]
[419016834,1774755053941,-2602.01,0.00033973,2]
[419016835,1774755053951,-744.75,0.00034,30]
[419016836,1774755053960,-2000.0,0.00034,2]
[419016837,1774755053970,-285.0,0.00034247,120]
[419016838,1774755053979,-222.0,0.00034247,120]
[419016839,1774755053988,-708.64808447,0.0003431,81]
[419016840,1774755053998,-1092.66,0.00034319,2]
[419016841,1774755054007,-445.31,0.000344,30]
[419016842,1774755054016,-4233.0,0.00034452,30]
[419016843,1774755054025,-876.0,0.00034452,30]
[419016844,1774755054035,-177.0,0.00034468,30]
[419016845,1774755054045,-162.0,0.00034468,30]
[419016846,1774755054055,-291.0,0.00034468,30]
[419016847,1774755054064,-424.0,0.00034468,30]
[419016848,1774755054073,-235.0,0.00034473,30]
[419016849,1774755054084,-500.0,0.00034492,2]
[419016850,1774755054094,-7380.22,0.000345,2]
[419016851,1774755054104,-513.0,0.00034625,20]
[419016852,1774755054114,-150.0,0.00034696,2]
[419016853,1774755054123,-1077.56,0.000347,30]
[419016854,1774755054132,-500.0,0.00034794,120]
[419016855,1774755054141,-500.0,0.00034794,120]
[419016856,1774755054151,-1500.0,0.00034795,2]
[419016857,1774755054160,-152.0,0.00034854,6]
[419016858,1774755054169,-648.6,0.000349,7]
[419016859,1774755054178,-616.12,0.00034999,120]
[419016860,1774755054188,-278.13861355,0.00035,7]
[419016861,1774755054197,-500.0,0.00035006,120]
[419016862,1774755054207,-159.8963,0.000353,2]
[419016863,1774755054217,-2215.406,0.00035449,42]
[419016864,1774755054226,-4233.0,0.00035452,30]
[419016865,1774755054235,-876.0,0.00035452,30]
[419016866,1774755054244,-177.0,0.00035468,30]
[419016867,1774755054254,-162.0,0.00035468,30]
[419016868,1774755054263,-291.0,0.00035468,30]
[419016869,1774755054272,-424.0,0.00035468,30]
[419016870,1774755054282,-235.0,0.00035473,30]
[419016871,1774755054292,-500.0,0.00035934,2]
[419016872,1774755054301,-154.0,0.00035953,120]
[419016873,1774755054310,-223.0,0.0003638,30]
[419016874,1774755054320,-150.0,0.0003643,2]
[419016875,1774755054329,-4233.0,0.00036452,30]
[419016876,1774755054339,-876.0,0.00036452,30]
[419016877,1774755054348,-177.0,0.00036468,30]
[419016878,1774755054358,-162.0,0.00036468,30]
[419016879,1774755054368,-291.0,0.00036468,30]
[419016880,1774755054377,-424.0,0.00036468,30]
[419016881,1774755054386,-235.0,0.00036473,30]
[419016882,1774755054395,-1092.66,0.00036482,2]
[419016883,1774755054405,-513.0,0.00036688,21]
[419016884,1774755054414,-925.0,0.00036808,2]
[419016885,1774755054424,-1216.0,0.00036808,2]
[419016886,1774755054434,-1346.0,0.00036808,2]
[419016887,1774755054444,-6013.0,0.00036808,2]
[419016888,1774755054453,-2468.0,0.00036808,2]
[419016889,1774755054463,-170.0,0.000369,120]
[419016890,1774755054472,-170.0,0.000369,120]
[419016891,1774755054481,-250.0,0.00036985,43]
[419016892,1774755054491,-214.0,0.00036986,30]
[419016893,1774755054500,-160.5788,0.00037,2]
[419016894,1774755054511,-2807.0,0.00037095,11]
[419016895,1774755054520,-151.0,0.00037197,14]
[419016896,1774755054530,-89499.46,0.000372,7]
[419016897,1774755054540,-151.0,0.000372,7]
[419016898,1774755054551,-151.0,0.000372,7]
[419016899,1774755054561,-151.0,0.000372,7]
[419016900,1774755054570,-151.0,0.000372,7]
[419016901,1774755054579,-151.0,0.000372,7]
[419016902,1774755054591,-151.0,0.000372,7]
[419016903,1774755054601,-181.319576,0.000372,7]
[419016904,1774755054611,-781.829264,0.000372,7]
[419016905,1774755054620,-781.829264,0.000372,7]
[419016906,1774755054629,-781.829264,0.000372,7]
[419016907,1774755054639,-781.829264,0.000372,7]
[419016908,1774755054648,-994.504961,0.000372,7]
[419016909,1774755054658,-994.504961,0.000372,7]
[419016910,1774755054667,-994.504961,0.000372,7]
[419016911,1774755054676,-994.504961,0.000372,7]
[419016912,1774755054687,-151.0,0.000372,7]
[419016913,1774755054696,-151.0,0.000372,7]
[419016914,1774755054706,-1555.508823,0.000372,7]
[419016915,1774755054717,-1555.508823,0.000372,7]
[419016916,1774755054726,-1555.508823,0.000372,7]
[419016917,1774755054736,-1555.508823,0.000372,7]
[419016918,1774755054746,-180.9644406,0.000372,120]
[419016919,1774755054755,-500.0,0.00037376,2]
[419016920,1774755054765,-4233.0,0.00037452,30]
[419016921,1774755054774,-876.0,0.00037452,30]
[419016922,1774755054783,-177.0,0.00037468,30]
[419016923,1774755054793,-166.97721072,0.00037468,30]
[419016924,1774755054803,-291.0,0.00037468,30]
[419016925,1774755054812,-424.0,0.00037468,30]
[419016926,1774755054822,-235.0,0.00037473,30]
[419016927,1774755054833,-204.0,0.00037569,2]
[419016928,1774755054843,-309.44,0.00037595,2]
[419016929,1774755054853,-445.31,0.000377,30]
[419016930,1774755054862,-2000.0,0.000377,2]
[419016931,1774755054872,-152.0,0.00037849,7]
[419016932,1774755054882,-244.84679543,0.00037849,5]
[419016933,1774755054891,-3500.0,0.000379,13]
[419016934,1774755054972,-500.0,0.00037928,120]
[419016935,1774755054982,-256.0,0.00037966,2]
[419016936,1774755054991,-500.0,0.00037995,2]
[419016937,1774755055000,-1077.56,0.00038,30]
[419016938,1774755055010,-154.0,0.00038072,30]
[419016939,1774755055019,-71926.40647443,0.000381,33]
[419016940,1774755055029,-271.46193031,0.000381,33]
[419016941,1774755055039,-150.0,0.00038252,2]
[419016942,1774755055048,-300.0,0.00038356,120]
[419016943,1774755055058,-505.75170034,0.00038356,5]
[419016944,1774755055068,-303.0,0.00038399,2]
[419016945,1774755055077,-500.0,0.00038399,120]
[419016946,1774755055086,-500.0,0.00038399,120]
[419016947,1774755055096,-4233.0,0.00038452,30]
[419016948,1774755055105,-876.0,0.00038452,30]
[419016949,1774755055114,-177.0,0.00038468,30]
[419016950,1774755055124,-291.0,0.00038468,30]
[419016951,1774755055133,-424.0,0.00038468,30]
[419016952,1774755055142,-235.0,0.00038473,30]
[419016953,1774755055152,-1092.66,0.00038644,2]
[419016954,1774755055162,-161.2642,0.000387,2]
[419016955,1774755055171,-170.0,0.00038745,120]
[419016956,1774755055182,-170.0,0.00038745,120]
[419016957,1774755055192,-513.0,0.0003875,23]
[419016958,1774755055201,-500.0,0.00038818,2]
[419016959,1774755055211,-211.42472077,0.00038862,7]
[419016960,1774755055220,-1262.69809606,0.00039,120]
[419016961,1774755055231,-1570.0,0.00039275,11]
[419016962,1774755055240,-250.0,0.00039351,60]
[419016963,1774755055249,-1895.19532017,0.00039452,30]
[419016964,1774755055596,-380.67545228,0.00012039,2]
[419016965,1774755055605,-380.67545228,0.00012039,2]
[419016966,1774755055615,-355.72015369,0.0001561,2]
[419016967,1774755055625,-263.16,0.00019163,2]
[419016968,1774755055636,-229.47894175,0.00019625,2]
[419016969,1774755820444,-162.91,0.00010792,2]
[419016972,1774756232256,-250.0,0.00011865,2]
[419016973,1774756232266,-291.0,0.00011865,2]
[419016974,1774756232275,-166.66,0.00012925,2]
[419016975,1774756232285,-250.0,0.00013044,2]
[419016976,1774756232294,-131.26081842,0.00013051,2]
[419016977,1774756232363,-118.73918158,0.00013051,2]
[419016978,1774756232372,-166.66,0.00013197,2]
[419016979,1774756232382,-1050.31134435,0.00013353,2]
[419016980,1774756232394,-467.51865565,0.00013353,2]
[419016981,1774756232404,-32.48134435,0.00013369,2]
[419016982,1774756232416,-145.19073959,0.00013369,2]
[419016984,1774756232426,-1024.55,0.00013469,2]
[419016986,1774756232435,-166.66,0.00013469,2]
[419016988,1774756232444,-1200.0,0.0001348,2]
[419016990,1774756232454,-300.0,0.00013481,2]
[419016992,1774756232464,-8066.75,0.00013482,2]
[419016994,1774756232473,-327.8108,0.00013528,2]
[419016996,1774756232482,-150.0,0.000136,2]
[419016998,1774756232492,-150.0,0.00013627,2]
[419017000,1774756232501,-7941.61,0.00013628,2]
[419017002,1774756232511,-150.99,0.00013628,2]
[419017004,1774756232520,-999.99,0.00013628,2]
[419017006,1774756232530,-302.39,0.00013628,2]
[419017008,1774756232539,-166.66,0.00013741,2]
[419017009,1774756232548,-224.28305486,0.00013791,2]
[419017011,1774756232557,-500.0,0.0001388,2]
[419017013,1774756232567,-227.22,0.00013988,2]
[419017016,1774756232577,-514.0,0.00014,2]
[419017018,1774756232587,-166.66,0.00014013,2]
[419017020,1774756232596,-227.22,0.00014262,2]
[419017022,1774756232606,-166.66,0.00014285,2]
[419017024,1774756232615,-2500.0,0.00014447,2]
[419017026,1774756232625,-210.25853783,0.00014473,2]
[419017028,1774756232634,-210.25853783,0.00014473,2]
[419017030,1774756232643,-11631.30149341,0.00014473,2]
[419017031,1774756232653,-227.22888824,0.00014536,2]
[419017033,1774756232662,-500.0,0.00014546,2]
[419017034,1774756232671,-320.64873907,0.00014546,2]
[419017035,1774756232681,-500.0,0.00014546,2]
[419017036,1774756232690,-500.0,0.00014546,2]
[419017037,1774756232700,-500.0,0.00014546,2]
[419017038,1774756232708,-403.38981732,0.00014546,2]
[419017039,1774756232718,-500.0,0.00014546,2]
[419017040,1774756232728,-500.0,0.00014546,2]
[419017041,1774756232737,-500.0,0.00014546,2]
[419017042,1774756232746,-500.0,0.00014546,2]
[419017043,1774756232755,-201.08009109,0.00014546,2]
[419017044,1774756232765,-500.0,0.00014546,2]
[419017045,1774756232775,-335.28048563,0.00014546,2]
[419017046,1774756232784,-500.0,0.00014546,2]
[419017047,1774756232793,-321.78262716,0.00014546,2]
[419017048,1774756232803,-478.67681789,0.00014546,2]
[419017049,1774756232812,-72751.10028745,0.00014547,2]
[419017050,1774756232824,-1254.41808677,0.00014547,2]
[419017051,1774756238171,-561.11581165,0.00014547,2]
[419017052,1774756238276,-2002.01021468,0.00014547,2]
[419017053,1774756238330,-1605.0,0.00014547,2]
[419017054,1774756238365,-1691.84149511,0.00014547,2]
[419017076,1774756241944,-11766.90970009,0.00014547,2]
[419017077,1774756241956,-335.38,0.00014547,2]
[419017078,1774756242563,-375.19173559,0.00014547,2]
[419017085,1774756243834,-490.44475387,0.00014547,2]
[419017086,1774756243961,-1391.21683457,0.00014547,2]
[419017087,1774756243972,-300.0,0.00014547,2]
[419017093,1774756246307,-7892.035199,0.00014473,2]
[419017094,1774756246362,-1623.30494545,0.00014473,2]
[419017095,1774756246374,-2014.00000003,0.00014473,2]
[419017099,1774756426673,473.85,6.956e-05,2]
[419017100,1774756426873,473.85,7.322e-05,2]
[419017101,1774756427071,473.85,7.688e-05,2]
[419017102,1774756427260,473.85,8.054e-05,2]
[419017103,1774756427452,473.85,8.421e-05,2]
[419017104,1774756427645,473.85,8.787e-05,2]
[419017105,1774756427833,473.85,9.153e-05,2]
[419017106,1774756428024,473.85,9.519e-05,2]
[419017107,1774756428217,473.85,9.885e-05,2]
[419017108,1774756428422,473.85,0.00010251,2]
[419017109,1774756428618,473.85,0.00010617,2]
[419017110,1774756735484,-473.85,0.00010983,2]
[419017111,1774757258213,605.22327867,8e-05,2]
[419017112,1774757324473,205.0,9.8e-05,2]
[419017114,1774757362952,-513.5973541,0.00011,2]
[419017115,1774757363105,-2787.33201313,0.00011,2]
[419017116,1774757363315,-3814.52672133,0.00011,2]
[419017117,1774757363339,-2370.95655734,0.00011,2]
[419017125,1774757432414,-250.0,0.00011083,2]
[419017126,1774757432424,-350.0,0.00011349,2]
[419017127,1774757432519,-123.85,0.00011349,2]
[419017128,1774757432529,-473.85,0.00011716,2]
[419017129,1774757432539,-473.85,0.00012082,2]
[419017130,1774757432548,-250.0,0.000121,2]
[419017131,1774757432557,-160.68773111,0.00012182,2]
[419017132,1774757432567,-473.85,0.00012448,2]
[419017133,1774757432576,-150.0,0.000126,2]
[419017134,1774757432586,-1200.0,0.00012696,2]
[419017135,1774757432596,-5193.91226889,0.00012697,2]
[419017136,1774757432626,-3465.87628444,0.00012697,2]
[419017145,1774757438486,-16522.86144667,0.00012697,2]
[419017146,1774757438496,-473.85,0.00012814,2]
[419017147,1774757438507,-1600.0,0.00012943,2]
[419017148,1774757438516,-150.0,0.00012943,2]
[419017149,1774757438527,-155.42,0.00012944,2]
[419017150,1774757438536,-5224.25,0.00012944,2]
[419017151,1774757438547,-499.99,0.00012944,2]
[419017152,1774757438557,-150.0,0.0001297,2]
[419017153,1774757438566,-500.0,0.00012973,2]
[419017154,1774757438576,-500.0,0.00012973,2]
[419017155,1774757438585,-500.0,0.00012973,2]
[419017156,1774757438595,-503.40008779,0.00012973,2]
[419017157,1774757438605,-500.0,0.00012973,2]
[419017158,1774757438615,-500.0,0.00012973,2]
[419017159,1774757438625,-500.0,0.00012973,2]
[419017160,1774757438635,-500.0,0.00012973,2]
[419017161,1774757438645,-500.0,0.00012973,2]
[419017162,1774757438654,-150.0,0.00012983,2]
[419017163,1774757438663,-272.177711,0.00012985,2]
[419017164,1774757438674,-433.7099797,0.00012998,2]
[419017165,1774757438683,-243.6824526,0.00012998,2]
[419017166,1774757438693,-104005.21350705,0.00012999,2]
[419017167,1774757438703,-250.0,0.00013,2]
[419017168,1774757438712,-1523.32620652,0.00013,2]
[419017169,1774757438722,-473.85,0.0001318,2]
[419017170,1774757438733,-175.68789941,0.0001318,2]
[419017171,1774757438742,-166.66,0.00013322,2]
[419017172,1774757438751,-155.85026359,0.00013353,2]
[419017173,1774757438761,-800.0,0.000135,4]
[419017174,1774757438771,-1000.0,0.00013521,2]
[419017175,1774757438781,-409.82711305,0.00013521,2]
[419017176,1774757438792,-500.0,0.00013521,2]
[419017177,1774757438807,-500.0,0.00013521,2]
[419017179,1774757438818,-454.80496102,0.00013521,2]
[419017181,1774757438828,-1000.0,0.00013521,2]
[419017183,1774757438838,-473.85,0.00013546,2]
[419017185,1774757438848,-1600.0,0.000136,4]
[419017186,1774757438859,-150.0,0.00013699,2]
[419017187,1774757438868,-150.0,0.00013699,2]
[419017188,1774757438878,-150.0,0.00013699,2]
[419017189,1774757438888,-150.0,0.00013699,2]
[419017190,1774757438898,-150.0,0.00013699,2]
[419017191,1774757438908,-526.92,0.00013699,2]
[419017193,1774757438918,-371.26,0.00013699,2]
[419017195,1774757438928,-500.0,0.00013699,2]
[419017197,1774757438938,-2400.0,0.000137,5]
[419017199,1774757438948,-150.0,0.000137,2]
[419017201,1774757438959,-217.8882415,0.000137,2]
[419017202,1774757438969,-250.0,0.00013718,2]
[419017203,1774757438979,-166.66,0.00013762,2]
[419017204,1774757438989,-3200.0,0.000138,5]
[419017205,1774757438999,-4000.0,0.000139,5]
[419017206,1774757439010,-1500.0,0.0001391,2]
[419017207,1774757439020,-473.85,0.00013912,2]
[419017208,1774757439030,-1680.0,0.00013965,2]